[Event "*** SCC Grand Prix: Titled Tuesday Blitz"]
[Site "Chess.com"]
[Date "2020.10.06"]
[Round "9"]
[White "tk22h"]
[Black "awesomevishesh"]
[Result "0-1"]
[WhiteElo "2333"]
[BlackElo "2426"]
[TimeControl "180+1"]
[EndTime "11:43:32 PDT"]
[Termination "awesomevishesh won by resignation"]

1. c4 {[%clk 0:02:58.6]} 1... e5 {[%clk 0:02:59.7]} 2. Nc3 {[%clk 0:02:57.4]}
2... Nf6 {[%clk 0:02:59.6]} 3. Nf3 {[%clk 0:02:56.3]} 3... Nc6 {[%clk
0:02:59.1]} 4. g3 {[%clk 0:02:56.3]} 4... d5 {[%clk 0:02:55.6]} 5. cxd5 {[%clk
0:02:56.3]} 5... Nxd5 {[%clk 0:02:55.5]} 6. Bg2 {[%clk 0:02:56.7]} 6... Bc5
{[%clk 0:02:55.2]} 7. O-O {[%clk 0:02:56.1]} 7... O-O {[%clk 0:02:54.8]} 8. d3
{[%clk 0:02:56.4]} 8... Bb6 {[%clk 0:02:53.5]} 9. Bg5 {[%clk 0:02:55.2]} 9...
Nde7 {[%clk 0:02:38]} 10. a3 {[%clk 0:02:49.8]} 10... f6 {[%clk 0:02:35.5]} 11.
Bd2 {[%clk 0:02:49.3]} 11... Be6 {[%clk 0:02:35]} 12. b4 {[%clk 0:02:48.1]}
12... Qd7 {[%clk 0:02:20.4]} 13. Ne4 {[%clk 0:02:46.2]} 13... Nd4 {[%clk
0:02:11.8]} 14. Nc5 {[%clk 0:02:42.3]} 14... Bxc5 {[%clk 0:02:10.8]} 15. bxc5
{[%clk 0:02:42.7]} 15... Bb3 {[%clk 0:02:09]} 16. Qe1 {[%clk 0:02:40.4]} 16...
Nc2 {[%clk 0:02:07.2]} 17. Qb1 {[%clk 0:02:36.5]} 17... Nxa1 {[%clk 0:02:07.1]}
18. Qxa1 {[%clk 0:02:36.7]} 18... Nc6 {[%clk 0:02:06]} 19. Rb1 {[%clk
0:02:34.3]} 19... Bd5 {[%clk 0:02:03.8]} 20. Rxb7 {[%clk 0:02:30.6]} 20... Rfb8
{[%clk 0:01:47.9]} 21. Rb2 {[%clk 0:02:00]} 21... Rxb2 {[%clk 0:01:46.5]} 22.
Qxb2 {[%clk 0:01:59.7]} 22... Rb8 {[%clk 0:01:47.4]} 23. Qc2 {[%clk 0:01:58.5]}
23... Nd4 {[%clk 0:01:44.3]} 24. Nxd4 {[%clk 0:01:57.8]} 24... exd4 {[%clk
0:01:45.2]} 25. Be4 {[%clk 0:01:48.7]} 25... f5 {[%clk 0:01:40.6]} 26. Bf3
{[%clk 0:01:45.1]} 26... Bxf3 {[%clk 0:01:39.2]} 27. exf3 {[%clk 0:01:44.6]}
27... Qd5 {[%clk 0:01:39.1]} 28. Kg2 {[%clk 0:01:44.3]} 28... Qb3 {[%clk
0:01:37.4]} 29. Qc1 {[%clk 0:01:42.1]} 29... Qxd3 {[%clk 0:01:37]} 30. Bf4
{[%clk 0:01:42]} 30... Rb1 {[%clk 0:01:35.7]} 31. Qd2 {[%clk 0:01:37.6]} 31...
Qxd2 {[%clk 0:01:35.1]} 32. Bxd2 {[%clk 0:01:37.7]} 32... d3 {[%clk 0:01:34]}
33. f4 {[%clk 0:01:36.5]} 33... Rb2 {[%clk 0:01:32.8]} 0-1

[Event "*** SCC Grand Prix: Titled Tuesday Blitz"]
[Site "Chess.com"]
[Date "2020.10.06"]
[Round "9"]
[White "Smile2005"]
[Black "ViktoriyaTarasova"]
[Result "1-0"]
[WhiteElo "2403"]
[BlackElo "2268"]
[TimeControl "180+1"]
[EndTime "11:43:38 PDT"]
[Termination "Smile2005 won on time"]

1. Nf3 {[%clk 0:02:57.4]} 1... Nf6 {[%clk 0:02:53.8]} 2. g3 {[%clk 0:02:58.3]}
2... b6 {[%clk 0:02:51.6]} 3. Bg2 {[%clk 0:02:59.2]} 3... Bb7 {[%clk 0:02:52.1]}
4. O-O {[%clk 0:03:00.1]} 4... e6 {[%clk 0:02:51.7]} 5. d3 {[%clk 0:03:00.3]}
5... d5 {[%clk 0:02:50.1]} 6. Nbd2 {[%clk 0:03:00.9]} 6... Be7 {[%clk
0:02:50.1]} 7. e4 {[%clk 0:03:01.1]} 7... O-O {[%clk 0:02:49.8]} 8. e5 {[%clk
0:03:00.8]} 8... Nfd7 {[%clk 0:02:49.5]} 9. Re1 {[%clk 0:03:01.7]} 9... c5
{[%clk 0:02:49.6]} 10. Nf1 {[%clk 0:03:01.9]} 10... Nc6 {[%clk 0:02:50]} 11. h4
{[%clk 0:03:01.4]} 11... Rc8 {[%clk 0:02:47.8]} 12. Bf4 {[%clk 0:03:01.5]} 12...
d4 {[%clk 0:02:46.6]} 13. N1h2 {[%clk 0:03:00.1]} 13... b5 {[%clk 0:02:46.2]}
14. Ng5 {[%clk 0:02:59.9]} 14... h6 {[%clk 0:02:45.2]} 15. Qh5 {[%clk
0:03:00.1]} 15... hxg5 {[%clk 0:01:50.4]} 16. hxg5 {[%clk 0:03:01]} 16... g6
{[%clk 0:01:50.9]} 17. Qh4 {[%clk 0:02:59.9]} 17... Re8 {[%clk 0:01:30]} 18. Ng4
{[%clk 0:02:59.3]} 18... Nf8 {[%clk 0:00:26]} 19. Nf6+ {[%clk 0:02:53.3]} 19...
Bxf6 {[%clk 0:00:24.8]} 20. gxf6 {[%clk 0:02:50.1]} 20... Nh7 {[%clk 0:00:13.9]}
21. Bg5 {[%clk 0:02:41.8]} 21... Kh8 {[%clk 0:00:12.1]} 22. f4 {[%clk 0:02:34]}
1-0

[Event "*** SCC Grand Prix: Titled Tuesday Blitz"]
[Site "Chess.com"]
[Date "2020.10.06"]
[Round "9"]
[White "QuintilianoR"]
[Black "Chessdreamer2020"]
[Result "1-0"]
[WhiteElo "2588"]
[BlackElo "2464"]
[TimeControl "180+1"]
[EndTime "11:43:55 PDT"]
[Termination "QuintilianoR won on time"]

1. Nf3 {[%clk 0:03:00.9]} 1... d6 {[%clk 0:00:17.6]} 2. d4 {[%clk 0:02:58.6]}
2... g6 {[%clk 0:00:16.5]} 3. e4 {[%clk 0:02:58.3]} 3... Bg7 {[%clk 0:00:17.4]}
4. Be2 {[%clk 0:02:58.3]} 4... Nf6 {[%clk 0:00:18.1]} 5. Nc3 {[%clk 0:02:56.2]}
5... a6 {[%clk 0:00:19]} 6. O-O {[%clk 0:02:56.3]} 6... O-O {[%clk 0:00:19.6]}
7. Re1 {[%clk 0:02:54.6]} 7... b5 {[%clk 0:00:20.2]} 8. a3 {[%clk 0:02:53.4]}
8... Bb7 {[%clk 0:00:20.7]} 9. Bd3 {[%clk 0:02:53.8]} 9... Nbd7 {[%clk
0:00:21.3]} 10. h3 {[%clk 0:02:52.6]} 10... c5 {[%clk 0:00:21.9]} 11. e5 {[%clk
0:02:49.8]} 11... dxe5 {[%clk 0:00:19.6]} 12. dxe5 {[%clk 0:02:49.2]} 12... Nd5
{[%clk 0:00:18.6]} 13. Ne4 {[%clk 0:02:46.5]} 13... Nxe5 {[%clk 0:00:17]} 14.
Nxe5 {[%clk 0:02:46.6]} 14... Bxe5 {[%clk 0:00:17.5]} 15. Nxc5 {[%clk 0:02:47]}
15... Qc7 {[%clk 0:00:10.7]} 16. Nxb7 {[%clk 0:02:46.1]} 16... Bg7 {[%clk
0:00:07.7]} 17. Be4 {[%clk 0:02:38.1]} 17... e6 {[%clk 0:00:08]} 18. Bxd5 {[%clk
0:02:37.3]} 18... exd5 {[%clk 0:00:08.6]} 19. Qxd5 {[%clk 0:02:37.7]} 19... Rad8
{[%clk 0:00:06.9]} 20. Nxd8 {[%clk 0:02:36.7]} 20... Rxd8 {[%clk 0:00:07.6]} 21.
Qe4 {[%clk 0:02:31.6]} 21... Qd7 {[%clk 0:00:05.7]} 22. Bg5 {[%clk 0:02:29.5]}
22... Rc8 {[%clk 0:00:05.9]} 23. Rad1 {[%clk 0:02:27.9]} 23... Qc7 {[%clk
0:00:05.7]} 24. Qe8+ {[%clk 0:02:25.9]} 24... Rxe8 {[%clk 0:00:04.5]} 25. Rxe8+
{[%clk 0:02:25.9]} 25... Bf8 {[%clk 0:00:04.6]} 26. Bh6 {[%clk 0:02:26.3]} 26...
Qc5 {[%clk 0:00:04.8]} 27. Rdd8 {[%clk 0:02:25.1]} 1-0

[Event "*** SCC Grand Prix: Titled Tuesday Blitz"]
[Site "Chess.com"]
[Date "2020.10.06"]
[Round "9"]
[White "gui_borba"]
[Black "BeanScreen"]
[Result "0-1"]
[WhiteElo "2493"]
[BlackElo "2666"]
[TimeControl "180+1"]
[EndTime "11:44:25 PDT"]
[Termination "BeanScreen won by resignation"]

1. d4 {[%clk 0:03:00.9]} 1... d5 {[%clk 0:02:59.7]} 2. Bf4 {[%clk 0:02:59.4]}
2... Nf6 {[%clk 0:03:00.1]} 3. e3 {[%clk 0:02:59.4]} 3... c5 {[%clk 0:03:00.3]}
4. c3 {[%clk 0:02:58.3]} 4... Nc6 {[%clk 0:03:00.2]} 5. Nd2 {[%clk 0:02:58]}
5... Qb6 {[%clk 0:03:00.2]} 6. Qb3 {[%clk 0:02:57.9]} 6... c4 {[%clk 0:03:00.8]}
7. Qc2 {[%clk 0:02:58.4]} 7... g6 {[%clk 0:03:00.4]} 8. Ngf3 {[%clk 0:02:58.2]}
8... Bf5 {[%clk 0:03:00.5]} 9. Qc1 {[%clk 0:02:58.7]} 9... Bg7 {[%clk
0:03:00.8]} 10. h3 {[%clk 0:02:58.7]} 10... O-O {[%clk 0:03:00.8]} 11. Be2
{[%clk 0:02:59.2]} 11... Qd8 {[%clk 0:02:50.2]} 12. O-O {[%clk 0:02:57.7]} 12...
b5 {[%clk 0:02:50.4]} 13. b3 {[%clk 0:02:57.9]} 13... Rc8 {[%clk 0:02:45]} 14.
b4 {[%clk 0:02:53.1]} 14... a5 {[%clk 0:02:42.8]} 15. a3 {[%clk 0:02:51]} 15...
Qb6 {[%clk 0:02:42]} 16. Ne5 {[%clk 0:02:46.2]} 16... Ra8 {[%clk 0:02:37.9]} 17.
Nxc6 {[%clk 0:02:44.9]} 17... Qxc6 {[%clk 0:02:38.8]} 18. Qb2 {[%clk 0:02:40.3]}
18... Ra7 {[%clk 0:02:37.4]} 19. a4 {[%clk 0:02:32.6]} 19... Rfa8 {[%clk
0:02:22.9]} 20. bxa5 {[%clk 0:02:26.2]} 20... bxa4 {[%clk 0:02:19.9]} 21. Qb6
{[%clk 0:02:18.2]} 21... Qxb6 {[%clk 0:02:03.4]} 22. axb6 {[%clk 0:02:19.1]}
22... Rb7 {[%clk 0:02:03.5]} 23. g4 {[%clk 0:02:13.1]} 23... Bc2 {[%clk
0:01:53.1]} 24. Rfc1 {[%clk 0:01:34]} 24... Bb3 {[%clk 0:01:52.6]} 25. Nxb3
{[%clk 0:01:30.3]} 25... cxb3 {[%clk 0:01:53.5]} 26. Rcb1 {[%clk 0:01:16.5]}
26... Rxb6 {[%clk 0:01:45.4]} 27. c4 {[%clk 0:01:16.8]} 27... Ne4 {[%clk
0:01:37.2]} 28. c5 {[%clk 0:00:57]} 28... Rb4 {[%clk 0:01:36.7]} 29. c6 {[%clk
0:00:54.7]} 29... Nc3 {[%clk 0:01:36.3]} 30. c7 {[%clk 0:00:42.3]} 30... Nxe2+
{[%clk 0:01:34.5]} 31. Kf1 {[%clk 0:00:41.4]} 31... Nxf4 {[%clk 0:01:34.3]} 32.
exf4 {[%clk 0:00:42.3]} 32... Rc8 {[%clk 0:01:29.6]} 0-1

[Event "*** SCC Grand Prix: Titled Tuesday Blitz"]
[Site "Chess.com"]
[Date "2020.10.06"]
[Round "9"]
[White "jacky72"]
[Black "korkmaz16"]
[Result "0-1"]
[WhiteElo "2554"]
[BlackElo "2384"]
[TimeControl "180+1"]
[EndTime "11:44:38 PDT"]
[Termination "korkmaz16 won by resignation"]

1. d4 {[%clk 0:03:00.2]} 1... d5 {[%clk 0:02:59.2]} 2. Nf3 {[%clk 0:02:56]} 2...
Nf6 {[%clk 0:02:58.4]} 3. c4 {[%clk 0:02:53.5]} 3... c6 {[%clk 0:02:50]} 4. Nc3
{[%clk 0:02:52.4]} 4... e6 {[%clk 0:02:49.3]} 5. cxd5 {[%clk 0:02:51.8]} 5...
exd5 {[%clk 0:02:48.7]} 6. Bf4 {[%clk 0:02:52.3]} 6... Bd6 {[%clk 0:02:47.9]} 7.
Bxd6 {[%clk 0:02:52.2]} 7... Qxd6 {[%clk 0:02:47.8]} 8. e3 {[%clk 0:02:53.1]}
8... O-O {[%clk 0:02:47.5]} 9. Bd3 {[%clk 0:02:54]} 9... Bg4 {[%clk 0:02:46.3]}
10. h3 {[%clk 0:02:53.4]} 10... Bh5 {[%clk 0:02:45.9]} 11. Qc2 {[%clk
0:02:53.5]} 11... Nbd7 {[%clk 0:02:43.7]} 12. g4 {[%clk 0:02:49.7]} 12... Bg6
{[%clk 0:02:43.2]} 13. O-O-O {[%clk 0:02:50.4]} 13... Rfc8 {[%clk 0:02:35.9]}
14. Kb1 {[%clk 0:02:50.2]} 14... a5 {[%clk 0:02:34]} 15. Bxg6 {[%clk 0:02:50.6]}
15... hxg6 {[%clk 0:02:32.4]} 16. g5 {[%clk 0:02:50.3]} 16... Nh5 {[%clk
0:02:18.1]} 17. Qd3 {[%clk 0:02:36.4]} 17... a4 {[%clk 0:02:14.6]} 18. Rhe1
{[%clk 0:02:34.5]} 18... b5 {[%clk 0:02:13.7]} 19. e4 {[%clk 0:02:34.5]} 19...
Nf4 {[%clk 0:02:11.6]} 20. Qe3 {[%clk 0:02:32.7]} 20... Ng2 {[%clk 0:02:11.1]}
21. Qd3 {[%clk 0:02:28.4]} 21... Nxe1 {[%clk 0:02:10.8]} 22. Rxe1 {[%clk
0:02:29.3]} 22... b4 {[%clk 0:02:07.2]} 23. e5 {[%clk 0:02:28.8]} 23... Qe6
{[%clk 0:02:06.3]} 24. Ne2 {[%clk 0:02:28.5]} 24... Qf5 {[%clk 0:02:06]} 25.
Qxf5 {[%clk 0:02:28]} 25... gxf5 {[%clk 0:02:06.1]} 26. Nf4 {[%clk 0:02:28]}
26... Nf8 {[%clk 0:02:04.6]} 27. g6 {[%clk 0:02:22.5]} 27... Nxg6 {[%clk
0:01:57.6]} 28. Nxg6 {[%clk 0:02:22.3]} 28... fxg6 {[%clk 0:01:57.7]} 29. Ng5
{[%clk 0:02:23.1]} 29... c5 {[%clk 0:01:53.3]} 30. dxc5 {[%clk 0:02:21.9]} 30...
Rxc5 {[%clk 0:01:54.2]} 31. e6 {[%clk 0:02:22]} 31... b3 {[%clk 0:01:51.2]} 32.
f4 {[%clk 0:01:51]} 32... Rc4 {[%clk 0:01:35.9]} 33. Rf1 {[%clk 0:01:43.3]}
33... d4 {[%clk 0:01:31.7]} 34. Rd1 {[%clk 0:01:42.4]} 34... Rac8 {[%clk
0:01:30.7]} 35. Nf3 {[%clk 0:01:42]} 35... d3 {[%clk 0:01:29.8]} 36. Ne5 {[%clk
0:01:42.3]} 36... Rd4 {[%clk 0:01:26.8]} 37. axb3 {[%clk 0:01:41.8]} 37... axb3
{[%clk 0:01:26.2]} 38. Nxd3 {[%clk 0:01:42.2]} 38... Rcd8 {[%clk 0:01:24.6]} 39.
e7 {[%clk 0:01:42.4]} 39... Re8 {[%clk 0:01:24.8]} 40. Kc1 {[%clk 0:01:43]}
40... Rxe7 {[%clk 0:01:24.9]} 41. Kd2 {[%clk 0:01:43.7]} 41... Red7 {[%clk
0:01:22.5]} 42. Kc3 {[%clk 0:01:43.8]} 42... R4d6 {[%clk 0:01:20.8]} 43. Rd2
{[%clk 0:01:43]} 43... Kh7 {[%clk 0:01:19.1]} 44. Rd1 {[%clk 0:01:40.7]} 44...
Kh6 {[%clk 0:01:18.9]} 45. Rd2 {[%clk 0:01:40.6]} 45... Kh5 {[%clk 0:01:18.5]}
46. Rd1 {[%clk 0:01:38.4]} 46... Rd4 {[%clk 0:01:17.8]} 47. Rd2 {[%clk
0:01:35.4]} 47... Kh4 {[%clk 0:01:17.8]} 48. Rd1 {[%clk 0:01:35.9]} 48... Rxf4
{[%clk 0:01:16.2]} 49. Nxf4 {[%clk 0:01:31]} 49... Rxd1 {[%clk 0:01:15.8]} 50.
Nxg6+ {[%clk 0:01:31.9]} 50... Kxh3 {[%clk 0:01:15.7]} 51. Kxb3 {[%clk
0:01:32.4]} 51... Kg3 {[%clk 0:01:15.5]} 52. Kc2 {[%clk 0:01:31.7]} 52... Rd8
{[%clk 0:01:14.6]} 53. b4 {[%clk 0:01:31.3]} 53... f4 {[%clk 0:01:15.1]} 54.
Nxf4 {[%clk 0:01:31.6]} 54... Kxf4 {[%clk 0:01:15.1]} 0-1

[Event "*** SCC Grand Prix: Titled Tuesday Blitz"]
[Site "Chess.com"]
[Date "2020.10.06"]
[Round "9"]
[White "zurzan"]
[Black "esrosenberg"]
[Result "0-1"]
[WhiteElo "1941"]
[BlackElo "2283"]
[TimeControl "180+1"]
[EndTime "11:44:41 PDT"]
[Termination "esrosenberg won by resignation"]

1. f4 {[%clk 0:03:00.9]} 1... g6 {[%clk 0:02:59.6]} 2. Nf3 {[%clk 0:03:00.9]}
2... d5 {[%clk 0:02:58.3]} 3. g3 {[%clk 0:03:01.8]} 3... c5 {[%clk 0:02:57]} 4.
Bg2 {[%clk 0:03:02.7]} 4... Nc6 {[%clk 0:02:56.6]} 5. O-O {[%clk 0:03:03.3]}
5... Bg7 {[%clk 0:02:54.7]} 6. d3 {[%clk 0:03:03.6]} 6... Nh6 {[%clk 0:02:52.2]}
7. c3 {[%clk 0:03:03.8]} 7... d4 {[%clk 0:02:49.1]} 8. e4 {[%clk 0:03:00.7]}
8... dxe3 {[%clk 0:02:26.4]} 9. Bxe3 {[%clk 0:03:00.7]} 9... Bf5 {[%clk
0:02:27]} 10. Bxc5 {[%clk 0:02:32.6]} 10... Bxd3 {[%clk 0:02:21.7]} 11. Re1
{[%clk 0:02:32]} 11... O-O {[%clk 0:02:21.6]} 12. Ne5 {[%clk 0:02:28.5]} 12...
Nxe5 {[%clk 0:02:21.1]} 13. fxe5 {[%clk 0:02:28.3]} 13... Rc8 {[%clk 0:02:15]}
14. Bd4 {[%clk 0:02:27.5]} 14... Ba6 {[%clk 0:02:00.6]} 15. Nd2 {[%clk
0:02:21.5]} 15... Nf5 {[%clk 0:01:58.6]} 16. Nf3 {[%clk 0:02:14.9]} 16... e6
{[%clk 0:01:48.6]} 17. g4 {[%clk 0:02:12.3]} 17... Nxd4 {[%clk 0:01:45.5]} 18.
cxd4 {[%clk 0:02:12.4]} 18... Qb6 {[%clk 0:01:37.3]} 19. b3 {[%clk 0:02:07.1]}
19... h6 {[%clk 0:01:30.6]} 20. Rc1 {[%clk 0:02:01.4]} 20... Rcd8 {[%clk
0:01:26.4]} 21. Qc2 {[%clk 0:01:44.5]} 21... Rd7 {[%clk 0:01:14.2]} 22. Kh1
{[%clk 0:01:41.2]} 22... Rfd8 {[%clk 0:01:13.1]} 23. h4 {[%clk 0:01:29.2]} 23...
Bb5 {[%clk 0:01:09.3]} 24. g5 {[%clk 0:01:24.1]} 24... Bc6 {[%clk 0:01:07.7]}
25. gxh6 {[%clk 0:01:19.9]} 25... Bxh6 {[%clk 0:01:07.5]} 26. Qc5 {[%clk
0:00:48.3]} 26... Bxc1 {[%clk 0:01:03.1]} 27. Qxb6 {[%clk 0:00:46.7]} 27... axb6
{[%clk 0:01:01.9]} 28. Rxc1 {[%clk 0:00:47.6]} 28... Bxf3 {[%clk 0:01:01.6]} 29.
Bxf3 {[%clk 0:00:47.5]} 29... Rxd4 {[%clk 0:01:01.8]} 30. Bxb7 {[%clk
0:00:47.3]} 30... Rd1+ {[%clk 0:00:58.1]} 31. Kg2 {[%clk 0:00:48.2]} 31... Rxc1
{[%clk 0:00:57.8]} 0-1

[Event "*** SCC Grand Prix: Titled Tuesday Blitz"]
[Site "Chess.com"]
[Date "2020.10.06"]
[Round "9"]
[White "Ural_bogatyr"]
[Black "MarceloPlaya"]
[Result "1-0"]
[WhiteElo "2377"]
[BlackElo "2259"]
[TimeControl "180+1"]
[EndTime "11:44:43 PDT"]
[Termination "Ural_bogatyr won on time"]

1. e4 {[%clk 0:03:00.9]} 1... e6 {[%clk 0:02:59.8]} 2. d4 {[%clk 0:03:00.2]}
2... d5 {[%clk 0:02:59.8]} 3. Bd3 {[%clk 0:03:00.5]} 3... c5 {[%clk 0:02:59.1]}
4. exd5 {[%clk 0:03:00.3]} 4... exd5 {[%clk 0:02:58.4]} 5. Nf3 {[%clk 0:03:00]}
5... Nf6 {[%clk 0:02:58.3]} 6. O-O {[%clk 0:02:59.4]} 6... Be7 {[%clk
0:02:58.3]} 7. dxc5 {[%clk 0:02:54.7]} 7... O-O {[%clk 0:02:57.9]} 8. b4 {[%clk
0:02:53.4]} 8... Bg4 {[%clk 0:02:57.5]} 9. h3 {[%clk 0:02:52]} 9... Bh5 {[%clk
0:02:56.7]} 10. c3 {[%clk 0:02:49.9]} 10... a5 {[%clk 0:02:51]} 11. a3 {[%clk
0:02:45.9]} 11... Nc6 {[%clk 0:02:49.3]} 12. Bb2 {[%clk 0:02:44.6]} 12... d4
{[%clk 0:02:43.8]} 13. cxd4 {[%clk 0:02:41.4]} 13... axb4 {[%clk 0:02:43.2]} 14.
axb4 {[%clk 0:02:29.4]} 14... Rxa1 {[%clk 0:02:42.1]} 15. Bxa1 {[%clk
0:02:30.3]} 15... Nxb4 {[%clk 0:02:37.2]} 16. Be2 {[%clk 0:02:27.3]} 16... Nfd5
{[%clk 0:02:31.6]} 17. Ne5 {[%clk 0:02:16.2]} 17... Bxe2 {[%clk 0:02:29.8]} 18.
Qxe2 {[%clk 0:02:17.1]} 18... Bf6 {[%clk 0:02:25.4]} 19. Nc3 {[%clk 0:02:12.2]}
19... Re8 {[%clk 0:02:16.4]} 20. Qc4 {[%clk 0:01:59.6]} 20... Nxc3 {[%clk
0:01:32.9]} 21. Bxc3 {[%clk 0:01:55.8]} 21... Nd5 {[%clk 0:01:27]} 22. Bb2
{[%clk 0:01:50.8]} 22... Nf4 {[%clk 0:01:24.4]} 23. Qxf7+ {[%clk 0:01:42.4]}
23... Kh8 {[%clk 0:01:22.2]} 24. Qxb7 {[%clk 0:01:36.4]} 24... Ne2+ {[%clk
0:01:15.8]} 25. Kh1 {[%clk 0:01:35.6]} 25... Nxd4 {[%clk 0:01:15.5]} 26. Nf7+
{[%clk 0:01:35.6]} 1-0

[Event "*** SCC Grand Prix: Titled Tuesday Blitz"]
[Site "Chess.com"]
[Date "2020.10.06"]
[Round "9"]
[White "ljuks68"]
[Black "kot60"]
[Result "0-1"]
[WhiteElo "2334"]
[BlackElo "2429"]
[TimeControl "180+1"]
[EndTime "11:44:52 PDT"]
[Termination "kot60 won on time"]

1. e4 {[%clk 0:03:00.9]} 1... e5 {[%clk 0:02:57.7]} 2. Nf3 {[%clk 0:03:00.9]}
2... Nc6 {[%clk 0:02:55.8]} 3. Bb5 {[%clk 0:03:01.2]} 3... a6 {[%clk 0:02:55.3]}
4. Ba4 {[%clk 0:03:00.9]} 4... d6 {[%clk 0:02:55]} 5. c3 {[%clk 0:02:59.8]} 5...
Ne7 {[%clk 0:02:55]} 6. d4 {[%clk 0:02:58.8]} 6... Ng6 {[%clk 0:02:55.5]} 7. d5
{[%clk 0:02:53.4]} 7... b5 {[%clk 0:02:54.3]} 8. Bc2 {[%clk 0:02:53.1]} 8... Na5
{[%clk 0:02:53.8]} 9. a4 {[%clk 0:02:53.2]} 9... Bd7 {[%clk 0:02:54]} 10. O-O
{[%clk 0:02:13.5]} 10... c5 {[%clk 0:02:53]} 11. b4 {[%clk 0:01:53.3]} 11... Nb7
{[%clk 0:02:47.2]} 12. Re1 {[%clk 0:01:46.2]} 12... h6 {[%clk 0:02:45.8]} 13.
Nbd2 {[%clk 0:01:44.7]} 13... Be7 {[%clk 0:02:44.3]} 14. Nf1 {[%clk 0:01:44.5]}
14... Rc8 {[%clk 0:02:36.5]} 15. Ne3 {[%clk 0:01:32.9]} 15... Bg5 {[%clk
0:02:34.1]} 16. Bd3 {[%clk 0:01:19.6]} 16... c4 {[%clk 0:02:33.3]} 17. Bc2
{[%clk 0:01:18.9]} 17... Bf4 {[%clk 0:02:24.4]} 18. Qe2 {[%clk 0:00:40.9]} 18...
O-O {[%clk 0:02:22]} 19. g3 {[%clk 0:00:40.3]} 19... Bxe3 {[%clk 0:02:21.3]} 20.
Qxe3 {[%clk 0:00:39.5]} 20... Ra8 {[%clk 0:02:14.8]} 21. h4 {[%clk 0:00:38.7]}
21... Ne7 {[%clk 0:01:45.5]} 22. a5 {[%clk 0:00:37.6]} 22... f5 {[%clk
0:01:44.6]} 23. exf5 {[%clk 0:00:30.8]} 23... Bxf5 {[%clk 0:01:22.3]} 24. Bxf5
{[%clk 0:00:17]} 24... Nxf5 {[%clk 0:01:22.1]} 25. Qe4 {[%clk 0:00:14.3]} 25...
Qd7 {[%clk 0:01:20.6]} 0-1

[Event "*** SCC Grand Prix: Titled Tuesday Blitz"]
[Site "Chess.com"]
[Date "2020.10.06"]
[Round "9"]
[White "hungrycaterpillar4"]
[Black "TrimitziosP7"]
[Result "0-1"]
[WhiteElo "2644"]
[BlackElo "2816"]
[TimeControl "180+1"]
[EndTime "11:44:54 PDT"]
[Termination "TrimitziosP7 won by resignation"]

1. d4 {[%clk 0:03:00.9]} 1... Nf6 {[%clk 0:02:59.3]} 2. Bf4 {[%clk 0:03:01.2]}
2... h5 {[%clk 0:02:54.7]} 3. c4 {[%clk 0:02:56.9]} 3... e6 {[%clk 0:02:51.3]}
4. Nc3 {[%clk 0:02:56.3]} 4... c5 {[%clk 0:02:45.1]} 5. d5 {[%clk 0:02:51.8]}
5... exd5 {[%clk 0:02:43.5]} 6. Nxd5 {[%clk 0:02:50.6]} 6... d6 {[%clk
0:02:40.2]} 7. Nf3 {[%clk 0:02:32.6]} 7... Be6 {[%clk 0:02:31.9]} 8. e3 {[%clk
0:01:28.4]} 8... Nbd7 {[%clk 0:02:20.8]} 9. Nxf6+ {[%clk 0:01:25.9]} 9... Qxf6
{[%clk 0:02:16.4]} 10. Qd2 {[%clk 0:01:21.9]} 10... Ne5 {[%clk 0:02:09]} 11.
Nxe5 {[%clk 0:01:07.2]} 11... dxe5 {[%clk 0:02:06.4]} 12. Bg3 {[%clk 0:01:01]}
12... h4 {[%clk 0:02:06.5]} 13. O-O-O {[%clk 0:00:37.8]} 13... hxg3 {[%clk
0:02:04.6]} 14. Qa5 {[%clk 0:00:35.3]} 14... Bd7 {[%clk 0:01:47.6]} 15. Be2
{[%clk 0:00:22.6]} 15... Bd6 {[%clk 0:01:38.9]} 16. hxg3 {[%clk 0:00:14.9]}
16... Rxh1 {[%clk 0:01:38.2]} 17. Rxh1 {[%clk 0:00:15.8]} 17... Ke7 {[%clk
0:01:37.9]} 18. Bf3 {[%clk 0:00:16.4]} 18... e4 {[%clk 0:01:28.8]} 19. Bxe4
{[%clk 0:00:11.7]} 19... Qxf2 {[%clk 0:01:28.5]} 20. Qc3 {[%clk 0:00:11.3]}
20... Qxg3 {[%clk 0:01:25.2]} 21. Rd1 {[%clk 0:00:06.6]} 21... Be5 {[%clk
0:01:23.5]} 22. Qd2 {[%clk 0:00:04.3]} 22... Be6 {[%clk 0:01:20.3]} 23. Bd5
{[%clk 0:00:03.6]} 23... Rd8 {[%clk 0:01:19.8]} 24. Kb1 {[%clk 0:00:03.5]} 24...
b5 {[%clk 0:01:18.8]} 0-1

[Event "*** SCC Grand Prix: Titled Tuesday Blitz"]
[Site "Chess.com"]
[Date "2020.10.06"]
[Round "9"]
[White "chessdjw"]
[Black "SharapovEvgeny"]
[Result "1-0"]
[WhiteElo "2644"]
[BlackElo "2472"]
[TimeControl "180+1"]
[EndTime "11:44:57 PDT"]
[Termination "chessdjw won by resignation"]

1. c4 {[%clk 0:03:00.9]} 1... c6 {[%clk 0:02:59.4]} 2. Nf3 {[%clk 0:03:00]} 2...
d5 {[%clk 0:02:59.3]} 3. g3 {[%clk 0:02:59.1]} 3... Nf6 {[%clk 0:02:58.8]} 4.
Bg2 {[%clk 0:02:59.6]} 4... g6 {[%clk 0:02:58.3]} 5. b3 {[%clk 0:02:57.7]} 5...
Bg7 {[%clk 0:02:58.1]} 6. Bb2 {[%clk 0:02:57.7]} 6... O-O {[%clk 0:02:57.7]} 7.
O-O {[%clk 0:02:58.3]} 7... Bf5 {[%clk 0:02:54.2]} 8. d3 {[%clk 0:02:57.6]} 8...
Re8 {[%clk 0:02:52.6]} 9. Re1 {[%clk 0:02:48.2]} 9... a6 {[%clk 0:02:44.9]} 10.
Nbd2 {[%clk 0:02:39]} 10... Bg4 {[%clk 0:02:36.6]} 11. h3 {[%clk 0:02:37.9]}
11... Bxf3 {[%clk 0:02:35.7]} 12. Nxf3 {[%clk 0:02:38.8]} 12... Nbd7 {[%clk
0:02:33.3]} 13. Rc1 {[%clk 0:02:38.1]} 13... e6 {[%clk 0:02:28.9]} 14. Qd2
{[%clk 0:02:35.7]} 14... b5 {[%clk 0:02:27.4]} 15. cxd5 {[%clk 0:02:33.9]} 15...
cxd5 {[%clk 0:02:26.7]} 16. Rc6 {[%clk 0:02:32.6]} 16... Nb8 {[%clk 0:01:48.2]}
17. Rc2 {[%clk 0:02:28.7]} 17... Qb6 {[%clk 0:01:43]} 18. Rec1 {[%clk
0:02:24.7]} 18... Nbd7 {[%clk 0:01:41.5]} 19. Rc6 {[%clk 0:02:14.2]} 19... Qb7
{[%clk 0:01:39.3]} 20. Rc7 {[%clk 0:02:13.6]} 20... Qb8 {[%clk 0:01:38.7]} 21.
Qe3 {[%clk 0:01:16.3]} 21... Ng4 {[%clk 0:01:17.1]} 22. hxg4 {[%clk 0:01:11.3]}
22... Bxb2 {[%clk 0:01:16.4]} 23. R1c2 {[%clk 0:01:02.5]} 23... Nf6 {[%clk
0:00:57.8]} 24. Qf4 {[%clk 0:00:59.1]} 24... Ba1 {[%clk 0:00:28.8]} 25. g5
{[%clk 0:00:57.6]} 1-0